bitfinex/quotes_BTCUSD_20240821
["timestamp","ask_amount","ask_price","bid_price","bid_amount"]
[1724204328599,0.000821,59146.0,59145.0,0.0049031]
[1724204328832,0.000821,59146.0,59145.0,0.0009031]
[1724204329034,0.000821,59146.0,59145.0,0.0129031]
[1724204329240,0.000821,59146.0,59145.0,0.0209031]
[1724204329678,0.10290636,59146.0,59145.0,0.0209031]
[1724204329887,0.10290636,59146.0,59145.0,0.0009031]
[1724204330073,0.10290636,59146.0,59145.0,0.0109031]
[1724204331456,0.10290636,59146.0,59145.0,0.0009031]
[1724204331863,0.10290636,59146.0,59145.0,0.0229031]
[1724204332073,0.16500636,59146.0,59145.0,0.0089031]
[1724204332279,0.16500636,59146.0,59145.0,0.0009031]
[1724204332502,0.16500636,59146.0,59145.0,0.0129031]
[1724204332714,0.16500636,59146.0,59145.0,0.0209031]
[1724204333550,0.02730636,59146.0,59145.0,0.0209031]
[1724204335874,0.02730636,59146.0,59145.0,0.1690031]
[1724204335875,0.000821,59146.0,59145.0,0.1690031]
[1724204336078,0.000821,59146.0,59145.0,0.18600341]
[1724204336285,0.000821,59146.0,59145.0,0.1690031]
[1724204336719,0.000821,59146.0,59145.0,0.1570031]
[1724204337130,0.001821,59146.0,59145.0,0.1700031]
[1724204337549,0.001821,59146.0,59145.0,0.1620031]
[1724204337997,0.001821,59146.0,59145.0,0.0229031]
[1724204338612,0.13991768,59149.0,59145.0,0.0229031]
[1724204339044,0.13627174,59149.0,59145.0,0.0229031]
[1724204339452,0.13627174,59149.0,59145.0,0.0139031]
[1724204339855,0.13404752,59149.0,59145.0,0.0009031]
[1724204340278,0.13404752,59149.0,59145.0,0.0099031]
[1724204340858,0.13404752,59149.0,59145.0,0.0159031]
[1724204341486,0.1,59150.0,59145.0,0.02508341]
[1724204341717,0.02648315,59149.0,59145.0,0.02508341]
[1724204342061,0.02648315,59149.0,59145.0,0.0159031]
[1724204342268,0.02648315,59149.0,59145.0,0.0099031]
[1724204342717,0.02648315,59149.0,59145.0,0.0149031]
[1724204343862,0.083,59147.0,59145.0,0.0099031]
[1724204344083,0.0264845,59146.0,59145.0,0.0099031]
[1724204344640,0.02648461,59146.0,59145.0,0.0099031]
[1724204344788,0.02648461,59146.0,59145.0,0.0159031]
[1724204344990,0.08898461,59146.0,59145.0,0.0159031]
[1724204345188,0.08898461,59146.0,59145.0,0.0069031]
[1724204345394,0.08898461,59146.0,59145.0,0.0009031]
[1724204345618,0.08898461,59146.0,59145.0,0.0229031]
[1724204349820,0.02648461,59146.0,59145.0,0.0229031]
[1724204350458,0.02594135,59146.0,59145.0,0.0229031]
[1724204354675,0.02594135,59148.0,59145.0,0.0229031]
[1724204355447,0.02594135,59147.0,59145.0,0.0229031]
[1724204355626,0.02594135,59149.0,59145.0,0.0229031]
[1724204355927,0.02594135,59148.0,59145.0,0.0099031]
[1724204356137,0.02594135,59149.0,59145.0,0.0209031]
[1724204356339,0.01558854,59148.0,59145.0,0.0119031]
[1724204356544,0.01114226,59147.0,59145.0,0.0009031]
[1724204356802,0.01114226,59146.0,59145.0,0.009]
[1724204357005,0.01114226,59149.0,59145.0,0.009]
[1724204357206,0.01114226,59148.0,59145.0,0.016]
[1724204357419,0.01114226,59147.0,59145.0,0.016]
[1724204357630,0.01114226,59146.0,59140.0,0.37159088]
[1724204357829,0.176321,59150.0,59145.0,0.0089031]
[1724204358053,0.02648472,59149.0,59145.0,0.0089031]
[1724204359272,0.02648472,59149.0,59145.0,0.0009031]
[1724204359682,0.02648472,59149.0,59147.0,0.2977]
[1724204359838,0.100821,59150.0,59149.0,0.1391]
[1724204360039,0.100821,59150.0,59149.0,0.18986158]
[1724204360237,0.100821,59150.0,59149.0,0.24024237]
[1724204360461,0.100821,59150.0,59149.0,0.21484065]
[1724204360680,0.100821,59150.0,59149.0,0.1641]
[1724204360874,0.100821,59150.0,59149.0,0.23663456]
[1724204361084,0.100821,59150.0,59149.0,0.25063456]
[1724204361539,0.100821,59150.0,59149.0,0.26463456]
[1724204361740,0.100821,59150.0,59149.0,0.29856456]
[1724204362300,0.100821,59150.0,59149.0,0.40366503]
[1724204362501,0.100821,59150.0,59149.0,0.38966503]
[1724204363140,0.100821,59150.0,59149.0,0.40056456]
[1724204363390,0.100821,59150.0,59149.0,0.37256456]
[1724204363598,0.100821,59150.0,59149.0,0.38656456]
[1724204363822,0.100821,59150.0,59149.0,0.40056456]
[1724204364017,0.00082,59158.0,59149.0,0.40056456]
[1724204364018,0.00082,59158.0,59157.0,0.003]
[1724204364225,0.00082,59158.0,59157.0,0.2271794]
[1724204364403,0.00082,59158.0,59157.0,0.78352573]
[1724204364602,0.00082,59158.0,59157.0,0.33227663]
[1724204365443,0.00082,59158.0,59157.0,0.3778178]
[1724204365661,0.00082,59158.0,59157.0,0.3291794]
[1724204366195,0.00082,59158.0,59157.0,0.3431794]
[1724204366438,0.00082,59158.0,59157.0,0.3291794]
[1724204366648,0.00082,59158.0,59157.0,0.3571794]
[1724204367132,0.00082,59158.0,59157.0,0.3291794]
[1724204367353,0.00082,59158.0,59157.0,0.36804452]
[1724204367602,0.00082,59158.0,59157.0,0.35404452]
[1724204367820,0.00082,59158.0,59157.0,0.34004452]
[1724204368230,0.00082,59158.0,59157.0,0.35404452]
[1724204369258,0.00082,59158.0,59157.0,0.36804452]
[1724204383173,0.00082,59158.0,59157.0,0.31004452]
[1724204383388,0.06592,59158.0,59157.0,0.17279512]
[1724204383603,0.06592,59158.0,59157.0,0.07279512]
[1724204383808,0.06592,59158.0,59157.0,0.028]
[1724204384244,0.14822,59158.0,59157.0,0.028]
[1724204384895,0.14822,59158.0,59157.0,0.014]
[1724204385716,0.14822,59158.0,59154.0,0.0009031]
[1724204386125,0.14822,59158.0,59157.0,0.014]
[1724204386363,0.14801654,59158.0,59157.0,0.028]
[1724204386549,0.14801654,59158.0,59157.0,0.014]
[1724204386753,0.14801654,59158.0,59154.0,0.0009031]
[1724204386958,0.14801654,59158.0,59154.0,0.0269031]
[1724204387372,0.14801654,59158.0,59154.0,0.0129031]
[1724204387579,0.06571654,59158.0,59157.0,0.014]
[1724204387833,0.06571654,59158.0,59157.0,0.026]
[1724204388062,0.00061654,59158.0,59157.0,0.04995331]
[1724204388294,0.00061654,59158.0,59157.0,0.15505242]
[1724204388820,0.00061654,59158.0,59157.0,0.17805242]
[1724204389025,0.00061654,59158.0,59157.0,0.16805242]
[1724204389499,0.00061654,59158.0,59157.0,0.22205242]
[1724204389921,0.00061654,59158.0,59157.0,0.29405331]
[1724204390340,0.00061654,59158.0,59157.0,0.33605614]
[1724204390751,0.00061654,59158.0,59157.0,0.32205614]
[1724204391206,0.00061654,59158.0,59157.0,0.33605614]
[1724204392160,0.00061654,59158.0,59157.0,0.33295839]
[1724204393807,0.00061654,59158.0,59157.0,0.36688839]
[1724204395143,0.00061654,59158.0,59157.0,0.35288839]
[1724204396202,0.00061654,59158.0,59157.0,0.36688839]
[1724204400706,0.00061654,59158.0,59157.0,0.41743564]
[1724204401536,0.00061654,59158.0,59157.0,0.36688839]
[1724204401735,0.00061654,59158.0,59157.0,0.35887939]
[1724204402374,0.00061654,59158.0,59157.0,0.25293508]
[1724204402563,0.00061654,59158.0,59157.0,0.33185379]
[1724204402795,0.00061654,59158.0,59157.0,0.3066279]
[1724204403216,0.00061654,59158.0,59157.0,0.33185379]
[1724204403658,0.00061654,59158.0,59157.0,0.63123911]
[1724204403857,0.00061654,59158.0,59157.0,0.75547419]
[1724204404475,0.00061654,59158.0,59157.0,0.77768512]
[1724204404889,0.00061654,59158.0,59157.0,0.65114127]
[1724204405499,1e-08,59158.0,59157.0,0.65114127]
[1724204406121,1e-08,59158.0,59157.0,0.70514127]
[1724204412761,1e-08,59158.0,59157.0,0.65114127]
[1724204413023,1e-08,59158.0,59157.0,0.65113369]
[1724204415111,0.00821,59162.0,59158.0,0.03893]
[1724204415354,0.00821,59162.0,59158.0,0.44022488]
[1724204415609,0.00821,59162.0,59158.0,0.54022488]
[1724204416573,0.00821,59162.0,59161.0,0.005]
[1724204416807,0.00821,59162.0,59161.0,0.86155214]
[1724204417064,0.00821,59162.0,59161.0,0.96155214]
[1724204418118,0.00821,59162.0,59161.0,0.97555214]
[1724204418375,0.00821,59162.0,59161.0,1.09579817]
[1724204418596,0.00821,59162.0,59161.0,0.96907464]
[1724204419544,0.0773,59171.0,59161.0,0.96907464]
[1724204419545,0.0002,59199.0,59178.0,0.003]
[1724204419751,0.0002,59199.0,59178.0,0.36072371]
[1724204419989,0.0002,59199.0,59178.0,0.40142295]
[1724204420264,0.1389,59179.0,59178.0,0.50142295]
[1724204420498,0.0637,59179.0,59178.0,0.50032924]
[1724204421208,0.0637,59179.0,59178.0,0.51132924]
[1724204421665,0.0002,59179.0,59178.0,0.50032924]
[1724204421933,0.0002,59179.0,59178.0,0.52832924]
[1724204422164,0.0002,59179.0,59178.0,0.51432924]
[1724204422880,0.00842042,59179.0,59178.0,0.51432924]
[1724204423622,0.00842042,59179.0,59178.0,0.52832924]
[1724204423854,0.00842042,59179.0,59178.0,0.53913292]
[1724204424684,0.00842042,59179.0,59178.0,0.49843368]
[1724204424931,0.0799,59179.0,59178.0,0.49843368]
[1724204425455,0.15037448,59179.0,59178.0,0.49443368]
[1724204425928,0.15037448,59179.0,59178.0,0.49643368]
[1724204426162,0.15037448,59179.0,59178.0,0.54727705]
[1724204426437,0.15037448,59179.0,59178.0,0.54627705]
[1724204426715,0.15037448,59179.0,59178.0,0.54727705]
[1724204426952,0.15037448,59179.0,59178.0,0.49343368]
[1724204427187,0.15037448,59179.0,59178.0,0.49643368]
[1724204427429,0.15037448,59179.0,59178.0,0.49843368]
[1724204428062,0.15037448,59179.0,59178.0,0.49743368]
[1724204428272,0.15037448,59179.0,59178.0,0.49843368]
[1724204428753,0.15119548,59179.0,59178.0,0.49843368]
[1724204429009,0.15119548,59179.0,59178.0,0.54827705]
[1724204429696,0.001021,59179.0,59178.0,0.54827705]
[1724204431071,0.15129548,59179.0,59178.0,0.49343368]
[1724204431283,0.15129548,59179.0,59178.0,0.47043368]
[1724204432537,0.15129548,59179.0,59178.0,0.49343368]
[1724204435150,0.15129548,59179.0,59178.0,0.028]
[1724204435357,0.16642503,59179.0,59178.0,0.028]
[1724204435563,0.1417,59178.0,59167.0,1.2454]
[1724204435783,0.1417,59174.0,59157.0,0.0009031]
[1724204435991,0.02452503,59179.0,59157.0,0.0009031]
[1724204435992,0.1467,59172.0,59157.0,0.0009031]
[1724204436234,0.06792529,59171.0,59157.0,0.0009031]
[1724204436476,0.0637,59169.0,59157.0,0.03544187]
[1724204436749,0.083,59168.0,59157.0,0.03544187]
[1724204437007,0.083,59166.0,59157.0,0.03544187]
[1724204437211,0.0637,59165.0,59157.0,0.03544187]
[1724204437506,0.083,59164.0,59157.0,0.03544187]
[1724204437769,0.083,59162.0,59157.0,0.0039031]
[1724204438011,0.083,59160.0,59157.0,0.0029031]
[1724204438251,0.083,59158.0,59157.0,0.0029031]
[1724204438515,0.1467,59158.0,59157.0,0.0029031]
[1724204438754,0.1467,59158.0,59157.0,0.0129031]
[1724204438755,0.15502342,59158.0,59157.0,0.0129031]
[1724204439259,0.15502342,59158.0,59157.0,0.0109031]
[1724204440186,0.15502342,59158.0,59157.0,0.0009031]
[1724204440422,0.15502342,59158.0,59157.0,0.0229031]
[1724204440954,0.15502342,59158.0,59157.0,0.0139031]
[1724204441201,0.15502342,59158.0,59157.0,0.0009031]
[1724204441437,0.17152576,59158.0,59157.0,0.0079031]
[1724204441702,0.1427,59157.0,59155.0,0.0009031]
[1724204441908,0.02582576,59158.0,59155.0,0.0009031]
[1724204441909,0.1469267,59156.0,59155.0,0.0009031]
[1724204442134,0.15475045,59156.0,59155.0,0.0009031]
[1724204443650,0.15152375,59156.0,59155.0,0.0009031]
[1724204443870,0.15152375,59156.0,59155.0,0.0079031]
[1724204444072,0.15475052,59156.0,59155.0,0.0079031]
[1724204444279,0.15475052,59156.0,59155.0,0.0009031]
[1724204444493,0.15475052,59156.0,59155.0,0.0029031]
[1724204444494,0.15575052,59156.0,59155.0,0.0029031]
[1724204444710,0.17132557,59156.0,59155.0,0.0029031]
[1724204445120,0.1670988,59156.0,59155.0,0.0029031]
[1724204445542,0.16412692,59156.0,59155.0,0.0029031]
[1724204445988,0.15087919,59156.0,59155.0,0.0029031]
[1724204446412,0.13530414,59156.0,59155.0,0.0029031]
[1724204446626,0.13953127,59156.0,59155.0,0.0029031]
[1724204447278,0.13853127,59156.0,59155.0,0.0009031]
[1724204447499,0.13853127,59156.0,59140.0,0.0009031]
[1724204447500,0.0765,59153.0,59140.0,0.0009031]
[1724204447704,0.08722757,59152.0,59140.0,0.0009031]
[1724204447910,0.09496889,59152.0,59140.0,0.0009031]
[1724204449024,0.0613,59151.0,59140.0,0.0009031]
[1724204449264,0.0613,59149.0,59140.0,0.0009031]
[1724204449456,0.08332753,59148.0,59140.0,0.0009031]
[1724204449694,0.0791,59146.0,59140.0,0.0009031]
[1724204449893,0.1392,59146.0,59140.0,0.0009031]
[1724204450301,0.14689663,59146.0,59140.0,0.0009031]
[1724204450514,0.15112416,59146.0,59140.0,0.0009031]
[1724204451544,0.14689663,59146.0,59140.0,0.0009031]
[1724204451747,0.1383,59145.0,59128.0,0.0315965]
[1724204451947,0.0778,59141.0,59128.0,0.0285965]
[1724204452189,0.0778,59141.0,59128.0,0.0295965]
[1724204452390,0.0778,59141.0,59128.0,0.0285965]
[1724204452796,0.00769663,59140.0,59128.0,0.0285965]
[1724204453000,0.0819,59139.0,59128.0,0.0285965]
[1724204453419,0.07029663,59138.0,59128.0,0.0285965]
[1724204454660,0.07129663,59138.0,59128.0,0.0285965]
[1724204454867,0.07129663,59138.0,59128.0,0.03170038]
[1724204455273,0.07229663,59138.0,59128.0,0.03470038]
[1724204455689,0.07229663,59138.0,59131.0,0.2977]
[1724204455690,0.00969663,59138.0,59131.0,0.2977]
[1724204455927,0.00969663,59138.0,59132.0,0.00310318]
[1724204456338,0.002,59138.0,59132.0,0.00310318]
[1724204456753,0.001,59138.0,59132.0,0.00310318]
[1724204456959,0.001,59138.0,59137.0,0.3776]
[1724204457168,0.002,59138.0,59137.0,0.4413]
[1724204457348,0.001,59138.0,59137.0,0.4413]
[1724204457593,0.001,59138.0,59137.0,0.55303646]
[1724204457798,0.002,59138.0,59137.0,0.57603646]
[1724204458040,0.002,59138.0,59137.0,0.63374011]
[1724204458041,0.001,59138.0,59137.0,0.63374011]
[1724204458260,0.1406,59152.0,59140.0,0.003]
[1724204458535,0.1406,59152.0,59144.0,0.320993]
[1724204458743,0.1406,59152.0,59144.0,0.319993]
[1724204459998,0.1406,59152.0,59144.0,0.318993]
[1724204460213,0.1406,59152.0,59144.0,0.317993]
[1724204460419,0.0774,59150.0,59139.0,0.023293]
[1724204460635,0.0774,59148.0,59144.0,0.013]
[1724204461065,0.0784,59148.0,59144.0,0.013]
[1724204461294,0.0774,59148.0,59144.0,0.013]
[1724204461499,0.0774,59148.0,59138.0,0.0339]
[1724204461700,0.0774,59148.0,59144.0,0.008]
[1724204462318,0.0784,59148.0,59144.0,0.008]
[1724204462732,0.0774,59148.0,59144.0,0.008]
[1724204462937,0.0774,59148.0,59139.0,0.014]
[1724204463146,0.0774,59148.0,59137.0,0.0339]
[1724204463363,0.09387,59148.0,59144.0,0.023]
[1724204463848,0.00765499,59147.0,59144.0,0.023]
[1724204464075,0.00765499,59147.0,59144.0,0.014]
[1724204464273,0.00765499,59147.0,59139.0,0.0429]
[1724204464481,0.00765499,59147.0,59144.0,0.0009031]
[1724204466505,0.00865499,59147.0,59144.0,0.0149031]
[1724204466747,0.00865499,59147.0,59144.0,0.0289031]
[1724204466748,0.0759,59145.0,59144.0,0.0289031]
[1724204467220,0.08782075,59145.0,59144.0,0.0289031]
[1724204467468,0.08359361,59145.0,59144.0,0.0289031]
[1724204467711,0.08359361,59145.0,59144.0,0.0149031]
[1724204467949,0.08359361,59145.0,59144.0,0.0009031]
[1724204468185,0.08559361,59145.0,59144.0,0.0289031]
[1724204469365,0.08459361,59145.0,59144.0,0.0149031]
[1724204469567,0.08459361,59145.0,59144.0,0.0109031]
[1724204469983,0.08559361,59145.0,59144.0,0.0239031]
[1724204470199,0.15039015,59145.0,59144.0,0.0239031]
[1724204470410,0.15139015,59145.0,59144.0,0.0239031]
[1724204470614,0.15039015,59145.0,59144.0,0.0239031]
[1724204471419,0.00969361,59145.0,59144.0,0.0239031]
[1724204471921,0.002,59145.0,59144.0,0.03238341]
[1724204472131,0.002,59145.0,59144.0,0.40778341]
[1724204472388,0.001,59145.0,59144.0,0.49778341]
[1724204472627,0.002,59145.0,59144.0,0.50878341]
[1724204472863,0.001,59145.0,59144.0,0.49578341]
[1724204473065,0.001,59145.0,59144.0,0.50885002]
[1724204473274,0.001,59145.0,59144.0,0.49585002]
[1724204473480,0.002,59145.0,59144.0,0.50685002]
[1724204473681,0.003,59145.0,59144.0,0.51985002]
[1724204475552,0.003,59145.0,59144.0,0.50936971]
[1724204475751,0.003,59145.0,59144.0,0.43366971]
[1724204475869,0.003,59145.0,59144.0,0.4226031]
[1724204476071,0.003,59145.0,59144.0,0.1249031]
[1724204476290,0.07408785,59146.0,59144.0,0.1249031]
[1724204476522,0.06515608,59146.0,59144.0,0.0249031]
[1724204477164,0.06515608,59146.0,59144.0,0.0139031]
[1724204477369,0.000821,59152.0,59144.0,0.0009031]
[1724204477570,0.000821,59152.0,59145.0,0.001]
[1724204477776,0.001,59146.0,59145.0,0.001]
[1724204477996,0.001,59146.0,59145.0,0.1468]
[1724204478214,0.001,59146.0,59145.0,0.14990122]
[1724204478631,0.002,59146.0,59145.0,0.14790122]
[1724204478830,0.002,59146.0,59145.0,0.19717244]
[1724204479088,0.000821,59152.0,59145.0,0.19717244]
[1724204479324,0.001,59146.0,59145.0,0.20817244]
[1724204479789,0.001,59146.0,59145.0,0.21617244]
[1724204479993,0.082421,59152.0,59145.0,0.15590122]
[1724204479994,0.083421,59152.0,59145.0,0.15590122]
[1724204480194,0.083421,59152.0,59145.0,0.14790122]
[1724204480394,0.001,59146.0,59145.0,0.16190122]
[1724204480604,0.001,59146.0,59145.0,0.1588]
[1724204480920,0.001,59146.0,59145.0,0.018]
[1724204482299,0.001,59146.0,59145.0,0.014]
[1724204482300,0.143,59146.0,59145.0,0.014]
[1724204482503,0.1517916,59146.0,59145.0,0.024]
[1724204483714,0.1517916,59146.0,59145.0,0.01598849]
[1724204487156,0.0097916,59146.0,59145.0,0.01598849]
[1724204487696,0.0097916,59146.0,59145.0,0.10028849]
[1724204487697,0.002,59146.0,59145.0,0.10028849]
[1724204487895,0.002,59146.0,59145.0,0.16441817]
[1724204488102,0.002821,59146.0,59145.0,0.26641817]
[1724204488301,0.002821,59146.0,59145.0,0.33895053]
[1724204488717,0.1384627,59165.0,59155.0,0.001]
[1724204488923,0.00775394,59164.0,59156.0,0.2977]
[1724204489128,0.00775394,59164.0,59150.0,0.3207]
[1724204489129,0.00422567,59163.0,59150.0,0.3207]
[1724204489328,0.00422567,59163.0,59151.0,0.1]
[1724204489813,0.00422567,59163.0,59151.0,0.099]
[1724204490024,0.00422567,59163.0,59151.0,0.098]
[1724204490271,0.001,59163.0,59151.0,0.098]
[1724204490487,0.00422585,59164.0,59151.0,0.098]
[1724204490691,0.02647779,59163.0,59151.0,0.098]
[1724204490891,0.00422585,59162.0,59151.0,0.098]
[1724204491833,0.001,59163.0,59151.0,0.098]
[1724204492034,0.001,59163.0,59152.0,0.05023]
[1724204492330,0.1384627,59165.0,59152.0,0.05532985]
[1724204493280,0.1384627,59165.0,59156.0,0.2977]
[1724204493463,0.001,59163.0,59156.0,0.2977]
[1724204493666,0.1384627,59165.0,59156.0,0.2977]
[1724204494124,0.1414627,59165.0,59156.0,0.2977]
[1724204494342,0.00787534,59164.0,59156.0,0.2977]
[1724204494529,0.00787534,59164.0,59156.0,0.409793]
[1724204494728,0.00787534,59164.0,59156.0,0.2977]
[1724204494938,0.001,59162.0,59156.0,0.2977]
[1724204495139,0.001,59162.0,59151.0,0.098]
[1724204495367,0.08750227,59161.0,59151.0,0.098]
[1724204495829,0.0796,59161.0,59151.0,0.098]
[1724204496286,0.0796,59161.0,59156.0,0.001]
[1724204496513,0.00788093,59160.0,59151.0,0.098]
[1724204496749,0.0796,59161.0,59151.0,0.098]
[1724204497469,0.0796,59161.0,59151.0,0.1]
[1724204499159,0.0796,59161.0,59152.0,0.00310021]
[1724204499640,0.0796,59164.0,59156.0,0.2977]
[1724204500785,0.000821,59163.0,59156.0,0.2977]
[1724204501020,0.000821,59163.0,59156.0,0.30079938]
[1724204501253,0.000821,59163.0,59156.0,0.2977]
[1724204501479,0.000821,59163.0,59162.0,0.2977]
[1724204501722,0.000821,59163.0,59162.0,0.3217]
[1724204501924,0.000821,59163.0,59162.0,0.3546]
[1724204502148,0.000821,59163.0,59162.0,0.4566]
[1724204502355,0.000821,59163.0,59162.0,0.47830003]
[1724204502776,0.000821,59163.0,59162.0,0.47630003]
[1724204503014,0.001821,59163.0,59162.0,0.49030003]
[1724204503221,0.001821,59163.0,59162.0,0.47630003]
[1724204503452,0.001821,59163.0,59162.0,0.46531737]
[1724204504066,0.064621,59163.0,59162.0,0.114]
[1724204504293,0.064621,59163.0,59162.0,0.014]
[1724204504294,0.143621,59163.0,59162.0,0.014]
[1724204504504,0.15170588,59163.0,59162.0,0.014]
[1724204505131,0.15170588,59163.0,59162.0,0.028]
[1724204505328,0.14970588,59163.0,59162.0,0.014]
[1724204505553,0.14970588,59163.0,59162.0,0.028]
[1724204505756,0.14970588,59163.0,59162.0,0.014]
[1724204505965,0.15070588,59163.0,59162.0,0.012]
[1724204506345,0.15070588,59163.0,59162.0,0.026]
[1724204509577,0.14970588,59163.0,59162.0,0.026]
[1724204511216,0.00890588,59163.0,59162.0,0.026]
[1724204515597,0.000821,59163.0,59162.0,0.026]
[1724204515999,0.000821,59163.0,59162.0,0.4672]
[1724204516247,0.000821,59163.0,59162.0,0.5912]
[1724204516458,0.000821,59163.0,59162.0,0.5892]
[1724204516903,0.000821,59163.0,59162.0,0.5902]
[1724204517154,0.000821,59163.0,59162.0,0.5892]
[1724204517360,0.000821,59163.0,59162.0,0.65500318]
[1724204517982,0.000821,59163.0,59162.0,0.65300318]
[1724204518605,0.000821,59163.0,59162.0,0.5892]
[1724204518810,0.000821,59163.0,59162.0,0.5902]
[1724204519024,0.000821,59163.0,59162.0,0.5892]
[1724204519466,0.000821,59163.0,59162.0,0.5902]
[1724204519667,0.000821,59163.0,59162.0,0.5892]
[1724204519875,0.000821,59163.0,59162.0,0.65500318]
[1724204521894,0.000821,59163.0,59162.0,0.65300318]
[1724204522303,0.000821,59163.0,59162.0,0.5892]
[1724204523869,0.000821,59163.0,59162.0,0.4467]
[1724204524418,0.00893356,59163.0,59162.0,0.4467]
[1724204524686,0.000821,59163.0,59162.0,0.4467]
[1724204524824,0.00893356,59163.0,59162.0,0.4467]
[1724204525736,0.00893356,59163.0,59162.0,0.4237]
[1724204525932,0.000821,59163.0,59162.0,0.4237]
[1724204527335,0.000821,59163.0,59162.0,0.4247]
[1724204527537,0.000821,59163.0,59162.0,0.63235318]
[1724204527950,0.000821,59163.0,59162.0,0.57215318]
[1724204528158,0.000821,59163.0,59162.0,0.49355318]
[1724204528392,0.000821,59163.0,59162.0,0.4467]
[1724204530883,0.000821,59163.0,59162.0,0.43869049]
[1724204531087,0.000821,59163.0,59162.0,0.41569049]
[1724204532862,0.07015914,59165.0,59162.0,0.41569049]
[1724204533235,0.0622,59172.0,59163.0,0.1]
[1724204533442,0.0622,59172.0,59164.0,0.023]
[1724204533648,0.0622,59172.0,59165.0,0.15139755]
[1724204533854,0.0622,59172.0,59166.0,0.18741003]
[1724204534057,0.0622,59172.0,59166.0,0.18641003]
[1724204535775,0.0622,59172.0,59166.0,0.08641003]
[1724204535971,0.0818,59171.0,59166.0,0.08641003]
[1724204536221,0.0818,59171.0,59166.0,0.028]
[1724204536906,0.0818,59171.0,59166.0,0.024]
[1724204537125,0.0818,59171.0,59166.0,0.006]
[1724204537330,0.0818,59171.0,59167.0,0.023]
[1724204537756,0.0818,59171.0,59166.0,0.008]
[1724204537947,0.00812317,59170.0,59166.0,0.008]
[1724204538788,0.00812317,59170.0,59166.0,0.002]
[1724204539204,0.00812317,59170.0,59167.0,0.006]
[1724204539879,0.00812317,59170.0,59167.0,0.008]
[1724204540080,0.00219041,59170.0,59167.0,0.0128]
[1724204540285,0.0818,59171.0,59167.0,0.0108]
[1724204540486,0.0818,59171.0,59167.0,0.0148]
[1724204541463,0.0818,59171.0,59167.0,0.0108]
[1724204541870,0.0818,59171.0,59167.0,0.0178]
[1724204542441,0.0818,59171.0,59167.0,0.0108]
[1724204542621,0.0818,59171.0,59167.0,0.0168]
[1724204542826,0.0818,59171.0,59167.0,0.0188]
[1724204543181,0.000821,59172.0,59167.0,0.0872]
[1724204543422,0.000821,59172.0,59167.0,0.0882]
[1724204543617,0.000821,59172.0,59168.0,0.2977]
[1724204546024,0.000821,59172.0,59168.0,0.2987]
[1724204546417,0.000821,59172.0,59168.0,0.34368]
[1724204546624,0.000821,59172.0,59168.0,0.34868]
[1724204547024,0.000821,59172.0,59171.0,0.0766]
[1724204547246,0.000821,59172.0,59171.0,0.1026964]
[1724204547466,0.000821,59172.0,59171.0,0.1638964]
[1724204547649,0.000821,59172.0,59171.0,0.33147629]
[1724204547795,0.000821,59172.0,59171.0,0.33247629]
[1724204548874,0.000821,59172.0,59171.0,0.33847629]
[1724204549319,0.000821,59172.0,59171.0,0.32837989]
[1724204549545,0.000821,59172.0,59171.0,0.1996]
[1724204549785,0.000821,59172.0,59171.0,0.1136]
[1724204550033,0.000821,59172.0,59171.0,0.2016]
[1724204550261,0.000821,59172.0,59171.0,0.136]
[1724204550470,0.00504574,59172.0,59171.0,0.122]
[1724204550742,0.147921,59172.0,59171.0,0.022]
[1724204551003,0.17439239,59172.0,59171.0,0.022]
[1724204551216,0.17439239,59172.0,59171.0,0.013]
[1724204551474,0.17439239,59172.0,59171.0,0.026]
[1724204551898,0.17339239,59172.0,59171.0,0.013]
[1724204552112,0.17339239,59172.0,59171.0,0.026]
[1724204552241,0.17339239,59172.0,59171.0,0.013]
[1724204552852,0.17339239,59172.0,59171.0,0.026]
[1724204553056,0.17339239,59172.0,59171.0,0.013]
[1724204553259,0.02729239,59172.0,59171.0,0.013]
[1724204553463,0.02829239,59172.0,59171.0,0.022]
[1724204554335,0.02808897,59172.0,59171.0,0.022]
[1724204555900,0.00161758,59172.0,59171.0,0.022]
[1724204557216,0.00161758,59172.0,59171.0,0.05397]
[1724204557430,0.00161758,59172.0,59171.0,0.022]
[1724204558628,0.0757,59176.0,59171.0,0.022]
[1724204558831,0.02647115,59175.0,59171.0,0.022]
[1724204559556,0.02647115,59175.0,59166.0,0.01060501]
[1724204559790,0.02647115,59175.0,59171.0,0.008]
[1724204560041,0.02647115,59176.0,59172.0,0.023]
[1724204560240,0.001021,59179.0,59172.0,0.023]
[1724204560442,0.02647033,59178.0,59173.0,0.00975]
[1724204560852,0.02647033,59178.0,59174.0,0.0815]
[1724204561685,0.001021,59179.0,59174.0,0.0815]
[1724204561896,0.001021,59179.0,59174.0,0.39000885]
[1724204562150,0.001021,59179.0,59176.0,0.001]
[1724204562386,0.001021,59179.0,59175.0,0.17789987]
[1724204562387,0.001021,59179.0,59178.0,0.001]
[1724204562657,0.001021,59179.0,59178.0,0.124]
[1724204562843,0.001021,59179.0,59178.0,0.125]
[1724204563044,0.001021,59179.0,59178.0,0.14278077]
[1724204563656,0.001021,59179.0,59178.0,0.14878077]
[1724204564039,0.001021,59179.0,59178.0,0.15778077]
[1724204564443,0.001021,59179.0,59178.0,0.24445479]
[1724204564651,0.001021,59179.0,59178.0,0.19277622]
[1724204565255,0.001021,59179.0,59178.0,0.19377622]
[1724204565402,0.001021,59179.0,59178.0,0.18677622]
[1724204565612,0.001021,59179.0,59178.0,0.17777622]
[1724204565806,0.001021,59179.0,59178.0,0.19977622]
[1724204566207,0.001021,59179.0,59178.0,0.19277622]
[1724204566644,0.001021,59179.0,59178.0,0.19377622]
[1724204567268,0.001021,59179.0,59178.0,0.19177622]
[1724204567475,0.001021,59179.0,59178.0,0.17777622]
[1724204568483,0.001021,59179.0,59178.0,0.19277622]
[1724204568728,0.001021,59179.0,59178.0,0.17499545]
[1724204568936,0.001021,59179.0,59178.0,0.18799545]
[1724204570061,0.001021,59179.0,59178.0,0.18999545]
[1724204572464,0.001021,59179.0,59178.0,0.26379545]